[Event "27th Kavala Open 2018"]
[Site "Kavala"]
[Date "2018.08.08"]
[Round "6"]
[White "Kourkoulos Arditis, Stamatis"]
[Black "Skaperdas, Kostantinos"]
[Result "1-0"]
[ECO "C19"]
[WhiteElo "2433"]
[BlackElo "2213"]
[Annotator "NA"]
[PlyCount "93"]
[EventDate "2018.08.06"]
[EventType "swiss"]
[EventCountry "GRE"]
[SourceTitle "playchess.com"]
[Source "ChessBase"]
[SourceQuality "1"]
[TimeControl "40/5400+30:900+30"]

1. e4 {[%emt 0:05:15]} e6 {[%emt 0:00:19]} 2. d4 {[%emt 0:00:07]} d5 {[%emt 0:00:01]} 3. Nc3 {[%emt 0:00:06]} Bb4 {[%emt 0:00:14]} 4. e5 {[%emt 0:00:04]} Ne7 {[%emt 0:01:18]} 5. a3 {[%emt 0:00:22]} Bxc3+ {[%emt 0:00:03]} 6. bxc3 {[%emt 0:00:05]} c5 {[%emt 0:00:03]} 7. a4 {[%emt 0:00:05]} O-O {[%emt 0:01:32]} 8. Nf3 {[%emt 0:06:52]} h6 {[%emt 0:04:26]} 9. Ba3 {[%emt 0:02:47]} b6 {[%emt 0:00:19]} 10. dxc5 {[%emt 0:01:28]} Qc7 {[%emt 0:00:28]} 11. c6 {[%emt 0:09:38]} Re8 {[%emt 0:13:10]} 12. Bb5 {[%emt 0:09:36]} Nbxc6 {[%emt 0:02:51]} 13. Bd6 {[%emt 0:00:04]} Qb7 {[%emt 0:01:51]} 14. O-O {[%emt 0:00:18]} Bd7 {[%emt 0:08:26]} 15. Qe2 {[%emt 0:01:52]} Na5 {[%emt 0:08:39]} 16. Ba6 {[%emt 0:09:42]} Qc6 {[%emt 0:00:08]} 17. Ra3 {[%emt 0:00:09]} Nf5 {[%emt 0:01:57]} 18. Nd4 {[%emt 0:00:04]} Nxd4 {[%emt 0:00:20]} 19. cxd4 {[%emt 0:00:02]} Nc4 {[%emt 0:00:25]} 20. Bb5 {[%emt 0:00:06]} Qc8 {[%emt 0:02:36]} 21. Bxc4 {[%emt 0:12:10]} Qxc4 {[%emt 0:00:23]} 22. Qd2 {[%emt 0:00:04]} Rac8 {[%emt 0:01:16]} 23. Rc1 {[%emt 0:01:35]} Bxa4 {[%emt 0:02:59]} 24. Qf4 {[%emt 0:03:24]} Kh7 {[%emt 0:05:09]} 25. Qxf7 {[%emt 0:10:46]} Qxd4 {[%emt 0:02:43]} 26. h3 {[%emt 0:00:08]} Qd2 {[%emt 0:04:58]} 27. Rca1 {[%emt 0:01:04]} b5 {[%emt 0:02:53]} 28. Rg3 {[%emt 0:03:33]} Rg8 {[%emt 0:00:01]} 29. c3 {[%emt 0:00:28]} Rxc3 {[%emt 0:04:13]} 30. Bb4 {[%emt 0:01:16]} d4 {[%emt 0:05:39]} 31. Rg4 {[%emt 0:00:21]} Qc2 {[%emt 0:09:57]} 32. Bxc3 {[%emt 0:05:57]} Qxc3 {[%emt 0:01:48]} 33. Rf1 {[%emt 0:00:06]} Bb3 {[%emt 0:02:35]} 34. Rg3 {[%emt 0:02:11]} Qc2 {[%emt 0:01:07]} 35. Ra1 {[%emt 0:02:33]} Ba2 {[%emt 0:01:31]} 36. Qxa7 {[%emt 0:00:19]} Bd5 {[%emt 0:06:51]} 37. Qxd4 {[%emt 0:00:05]} Rc8 {[%emt 0:00:27]} 38. Ra7 {[%emt 0:00:32]} Rg8 {[%emt 0:02:53]} 39. Qg4 {[%emt 0:00:46]} Qc1+ {[%emt 0:00:16]} 40. Kh2 {[%emt 0:00:00]} Qg5 {[%emt 0:00:00]} 41. Qd4 {[%emt 0:09:09]} Qf5 {[%emt 0:01:47]} 42. f4 {[%emt 0:03:14]} Kh8 {[%emt 0:01:07]} 43. Rc7 {[%emt 0:00:51]} Qf8 {[%emt 0:01:28]} 44. Qa7 {[%emt 0:01:00]} b4 {[%emt 0:00:23]} 45. Rf7 {[%emt 0:00:05]} Qa8 {[%emt 0:01:14]} 46. Qe7 {[%emt 0:01:11]} Re8 {[%emt 0:01:39]} 47. Rf8+ {[%emt 0:00:04]} 1-0

[Event "27th Kavala Open 2018"]
[Site "Kavala"]
[Date "2018.08.08"]
[Round "6"]
[White "Neelotpal, Das"]
[Black "Megalios, Konstantinos"]
[Result "1/2-1/2"]
[ECO "A06"]
[WhiteElo "2429"]
[BlackElo "2292"]
[Annotator "NA"]
[PlyCount "31"]
[EventDate "2018.08.06"]
[EventType "swiss"]
[EventCountry "GRE"]
[SourceTitle "playchess.com"]
[Source "ChessBase"]
[SourceQuality "1"]
[TimeControl "40/5400+30:900+30"]

1. Nf3 {[%emt 0:02:44]} d5 {[%emt 0:03:15]} 2. g3 {[%emt 0:00:05]} c6 {[%emt 0:00:05]} 3. Bg2 {[%emt 0:00:03]} Bg4 {[%emt 0:00:34]} 4. c4 {[%emt 0:00:11]} e6 {[%emt 0:00:37]} 5. cxd5 {[%emt 0:00:24]} exd5 {[%emt 0:00:26]} 6. O-O {[%emt 0:00:30]} Nf6 {[%emt 0:00:17]} 7. d3 {[%emt 0:00:05]} Bc5 {[%emt 0:02:00]} 8. Qc2 {[%emt 0:01:32]} Nbd7 {[%emt 0:01:04]} 9. e4 {[%emt 0:01:14]} O-O {[%emt 0:02:32]} 10. Nc3 {[%emt 0:08:06]} Re8 {[%emt 0:07:18]} 11. Nh4 {[%emt 0:15:12]} dxe4 {[%emt 0:06:12]} 12. dxe4 {[%emt 0:00:11]} Ne5 {[%emt 0:00:32]} 13. Na4 {[%emt 0:01:42]} Bd4 {[%emt 0:03:34]} 14. Kh1 {[%emt 0:05:58]} c5 {[%emt 0:08:40]} 15. h3 {[%emt 0:11:49]} Bd7 {[%emt 0:01:47]} 16. Nc3 {[%emt 0:11:53]} 1/2-1/2

[Event "27th Kavala Open 2018"]
[Site "Kavala"]
[Date "2018.08.08"]
[Round "6"]
[White "Bulmaga, Irina"]
[Black "Loutragotis, Dimitrios"]
[Result "1/2-1/2"]
[ECO "B31"]
[WhiteElo "2401"]
[BlackElo "2169"]
[Annotator "NA"]
[PlyCount "78"]
[EventDate "2018.08.06"]
[EventType "swiss"]
[EventCountry "GRE"]
[SourceTitle "playchess.com"]
[Source "ChessBase"]
[SourceQuality "1"]
[TimeControl "40/5400+30:900+30"]

1. e4 {[%emt 0:04:54]} c5 {[%emt 0:00:09]} 2. Nf3 {[%emt 0:00:07]} Nc6 {[%emt 0:00:12]} 3. Bb5 {[%emt 0:00:06]} g6 {[%emt 0:00:17]} 4. Bxc6 {[%emt 0:00:05]} dxc6 {[%emt 0:00:34]} 5. d3 {[%emt 0:00:06]} Bg7 {[%emt 0:00:36]} 6. Nc3 {[%emt 0:00:27]} e5 {[%emt 0:01:26]} 7. h3 {[%emt 0:01:10]} Ne7 {[%emt 0:00:39]} 8. Be3 {[%emt 0:00:41]} b6 {[%emt 0:01:35]} 9. Qd2 {[%emt 0:03:31]} h6 {[%emt 0:01:12]} 10. O-O-O {[%emt 0:14:38]} Be6 {[%emt 0:02:56]} 11. Kb1 {[%emt 0:00:31]} Qc7 {[%emt 0:11:16]} 12. Rhe1 {[%emt 0:02:13]} O-O-O {[%emt 0:00:49]} 13. Qe2 {[%emt 0:01:36]} Rhe8 {[%emt 0:06:01]} 14. Nd2 {[%emt 0:12:12]} f5 {[%emt 0:11:23]} 15. f3 {[%emt 0:02:32]} f4 {[%emt 0:02:50]} 16. Bf2 {[%emt 0:00:06]} g5 {[%emt 0:00:22]} 17. Nb3 {[%emt 0:00:14]} Kb8 {[%emt 0:05:49]} 18. Na4 {[%emt 0:08:12]} Ng6 {[%emt 0:04:42]} 19. Nc1 {[%emt 0:02:20]} h5 {[%emt 0:03:32]} 20. b3 {[%emt 0:02:19]} g4 {[%emt 0:03:05]} 21. hxg4 {[%emt 0:01:04]} hxg4 {[%emt 0:00:07]} 22. Rh1 {[%emt 0:00:50]} Rh8 {[%emt 0:01:47]} 23. fxg4 {[%emt 0:05:45]} Qc8 {[%emt 0:00:57]} 24. Qd2 {[%emt 0:00:11]} Bxg4 {[%emt 0:00:19]} 25. Rdf1 {[%emt 0:00:22]} Bf6 {[%emt 0:07:09]} 26. Nb2 {[%emt 0:04:48]} Be7 {[%emt 0:03:40]} 27. a3 {[%emt 0:08:15]} Rxh1 {[%emt 0:01:19]} 28. Rxh1 {[%emt 0:00:01]} Rh8 {[%emt 0:00:10]} 29. Rxh8 {[%emt 0:00:52]} Qxh8 {[%emt 0:00:07]} 30. g3 {[%emt 0:01:45]} Qh2 {[%emt 0:08:09]} 31. Qe1 {[%emt 0:00:56]} Nh8 {[%emt 0:05:27]} 32. b4 {[%emt 0:04:06]} cxb4 {[%emt 0:00:45]} 33. axb4 {[%emt 0:00:01]} Nf7 {[%emt 0:00:29]} 34. gxf4 {[%emt 0:02:52]} exf4 {[%emt 0:00:25]} 35. d4 {[%emt 0:00:32]} Ng5 {[%emt 0:01:06]} 36. Nbd3 {[%emt 0:02:49]} Bf3 {[%emt 0:07:56]} 37. Nxf4 {[%emt 0:07:33]} Nxe4 {[%emt 0:00:15]} 38. Nfd3 {[%emt 0:00:35]} Bg5 {[%emt 0:04:05]} 39. Qg1 {[%emt 0:04:47]} Qxg1 {[%emt 0:03:51]} 1/2-1/2

[Event "27th Kavala Open 2018"]
[Site "Kavala"]
[Date "2018.08.08"]
[Round "6"]
[White "Gouloutis, Nikolaos"]
[Black "Kakushadze, Ilia"]
[Result "1/2-1/2"]
[ECO "A43"]
[WhiteElo "2391"]
[BlackElo "2149"]
[Annotator "NA"]
[PlyCount "85"]
[EventDate "2018.08.06"]
[EventType "swiss"]
[EventCountry "GRE"]
[SourceTitle "playchess.com"]
[Source "ChessBase"]
[SourceQuality "1"]
[TimeControl "40/5400+30:900+30"]

1. d4 {[%emt 0:05:19]} Nf6 {[%emt 0:00:08]} 2. Nf3 {[%emt 0:00:07]} c5 {[%emt 0:00:09]} 3. d5 {[%emt 0:05:46]} b5 {[%emt 0:00:05]} 4. Bg5 {[%emt 0:01:48]} Qb6 {[%emt 0:00:06]} 5. Bxf6 {[%emt 0:03:41]} Qxf6 {[%emt 0:00:05]} 6. c3 {[%emt 0:00:04]} g6 {[%emt 0:00:04]} 7. e4 {[%emt 0:01:23]} Qb6 {[%emt 0:00:04]} 8. Nbd2 {[%emt 0:13:35]} Bg7 {[%emt 0:01:34]} 9. a4 {[%emt 0:01:59]} b4 {[%emt 0:00:06]} 10. Nc4 {[%emt 0:08:06]} Qb7 {[%emt 0:00:31]} 11. Qc2 {[%emt 0:00:45]} O-O {[%emt 0:00:07]} 12. Bd3 {[%emt 0:03:19]} d6 {[%emt 0:00:05]} 13. O-O {[%emt 0:00:21]} bxc3 {[%emt 0:00:35]} 14. bxc3 {[%emt 0:00:13]} Qc7 {[%emt 0:00:04]} 15. Rab1 {[%emt 0:06:43]} Nd7 {[%emt 0:01:18]} 16. Ne3 {[%emt 0:23:14]} Qa5 {[%emt 0:01:58]} 17. Rfc1 {[%emt 0:00:07]} Ba6 {[%emt 0:00:36]} 18. Bb5 {[%emt 0:04:11]} Bxb5 {[%emt 0:06:41]} 19. axb5 {[%emt 0:01:59]} Qc7 {[%emt 0:08:30]} 20. Nc4 {[%emt 0:00:17]} Nb6 {[%emt 0:00:22]} 21. Qe2 {[%emt 0:05:12]} Nxc4 {[%emt 0:07:02]} 22. Qxc4 {[%emt 0:00:04]} Rfb8 {[%emt 0:00:13]} 23. h4 {[%emt 0:01:59]} Qa5 {[%emt 0:05:16]} 24. e5 {[%emt 0:03:46]} Qc7 {[%emt 0:09:11]} 25. e6 {[%emt 0:00:04]} f6 {[%emt 0:01:12]} 26. h5 {[%emt 0:00:11]} g5 {[%emt 0:01:09]} 27. Nd2 {[%emt 0:03:23]} f5 {[%emt 0:03:54]} 28. Qd3 {[%emt 0:00:45]} Rf8 {[%emt 0:00:21]} 29. Nc4 {[%emt 0:00:08]} Qd8 {[%emt 0:03:16]} 30. b6 {[%emt 0:01:32]} Rb8 {[%emt 0:03:48]} 31. bxa7 {[%emt 0:00:54]} Rxb1 {[%emt 0:00:11]} 32. Rxb1 {[%emt 0:01:07]} Qc7 {[%emt 0:00:04]} 33. Ra1 {[%emt 0:02:36]} Ra8 {[%emt 0:02:49]} 34. Qxf5 {[%emt 0:00:18]} Bxc3 {[%emt 0:00:40]} 35. Qf7+ {[%emt 0:01:36]} Kh8 {[%emt 0:00:04]} 36. Ra3 {[%emt 0:00:29]} Bg7 {[%emt 0:00:32]} 37. h6 {[%emt 0:00:12]} Bxh6 {[%emt 0:00:17]} 38. Ra6 {[%emt 0:00:59]} Qb7 {[%emt 0:12:25]} 39. Nb6 {[%emt 0:00:40]} Qxa6 {[%emt 0:01:27]} 40. Nxa8 {[%emt 0:00:00]} Qxa7 {[%emt 0:00:00]} 41. Qe8+ {[%emt 0:14:10]} Kg7 {[%emt 0:00:18]} 42. Qf7+ {[%emt 0:00:05]} Kh8 {[%emt 0:00:02]} 43. Qe8+ {[%emt 0:02:29]} 1/2-1/2

[Event "27th Kavala Open 2018"]
[Site "Kavala"]
[Date "2018.08.08"]
[Round "6"]
[White "Ambartsumova, Karina"]
[Black "Nevednichy, Vladislav"]
[Result "1-0"]
[ECO "E62"]
[WhiteElo "2377"]
[BlackElo "2550"]
[Annotator "ChessBase"]
[PlyCount "101"]
[EventDate "2018.08.06"]
[EventType "swiss"]
[EventCountry "GRE"]
[SourceTitle "playchess.com"]
[Source "ChessBase"]
[SourceQuality "1"]
[TimeControl "40/5400+30:900+30"]

1. d4 {[%emt 0:00:13]} Nf6 {[%emt 0:03:14]} 2. c4 {[%emt 0:00:28]} g6 {[%emt 0:01:25]} 3. Nf3 {[%emt 0:01:37]} Bg7 {[%emt 0:00:06]} 4. g3 {[%emt 0:01:45]} O-O {[%emt 0:00:07]} 5. Bg2 {[%emt 0:00:04]} d6 {[%emt 0:00:17]} 6. Nc3 {[%emt 0:01:36]} c6 {[%emt 0:02:19]} 7. O-O {[%emt 0:01:31]} Qa5 {[%emt 0:00:30]} 8. e4 {[%emt 0:04:07]} e5 {[%emt 0:00:11]} 9. h3 {[%emt 0:02:11]} Nbd7 {[%emt 0:00:18]} 10. Re1 {[%emt 0:01:02]} exd4 11. Nxd4 {[%emt 0:00:14]} Ne5 {[%emt 0:00:27]} 12. Bf1 {[%emt 0:00:45]} Re8 {[%emt 0:00:55]} 13. Be3 {[%emt 0:04:27]} c5 {[%emt 0:07:26]} 14. Nb3 {[%emt 0:02:09]} Qb4 {[%emt 0:00:58]} 15. a3 {[%emt 0:10:05]} Qb6 {[%emt 0:00:09]} 16. Nd2 {[%emt 0:09:00]} Qc7 {[%emt 0:08:51]} 17. f4 {[%emt 0:08:27]} Nc6 {[%emt 0:02:06]} 18. Bf2 {[%emt 0:02:11]} a6 {[%emt 0:03:22]} 19. Nf3 {[%emt 0:04:18]} Be6 {[%emt 0:19:24]} 20. Rc1 {[%emt 0:16:57]} b6 {[%emt 0:03:17]} 21. g4 {[%emt 0:02:06]} h6 {[%emt 0:17:18]} 22. Qc2 {[%emt 0:02:34]} Nh7 {[%emt 0:10:22]} 23. Rcd1 {[%emt 0:10:45]} g5 {[%emt 0:04:22]} 24. Nd5 {[%emt 0:06:09]} Qb8 {[%emt 0:05:46]} 25. Qd2 {[%emt 0:02:43]} gxf4 {[%emt 0:05:16]} 26. Qxf4 {[%emt 0:00:34]} Bxd5 {[%emt 0:02:14]} 27. exd5 {[%emt 0:00:57]} Ne7 {[%emt 0:00:30]} 28. Bd3 {[%emt 0:00:58]} Nf8 {[%emt 0:00:22]} 29. Bg3 {[%emt 0:00:53]} Neg6 {[%emt 0:01:09]} 30. Rxe8 {[%emt 0:03:15]} Qxe8 {[%emt 0:00:02]} 31. Qxd6 {[%emt 0:00:04]} Bxb2 {[%emt 0:00:39]} 32. Re1 {[%emt 0:00:50]} Qa4 {[%emt 0:01:36]} 33. Qc6 {[%emt 0:00:49]} Qxa3 {[%emt 0:00:47]} 34. Qxa8 {[%emt 0:00:24]} Qxd3 {[%emt 0:00:03]} 35. d6 {[%emt 0:00:22]} Bd4+ {[%emt 0:01:04]} 36. Kh1 {[%emt 0:00:39]} Bc3 {[%emt 0:00:29]} 37. Qe4 {[%emt 0:00:23]} Qxe4 {[%emt 0:00:04]} 38. Rxe4 {[%emt 0:00:04]} b5 {[%emt 0:00:49]} 39. Re8 {[%emt 0:00:37]} Kg7 {[%emt 0:00:04]} 40. cxb5 {[%emt 0:00:00]} axb5 {[%emt 0:00:00]} 41. Ne5 {[%emt 0:10:50]} Bxe5 {[%emt 0:00:55]} 42. Bxe5+ {[%emt 0:00:08]} f6 {[%emt 0:00:02]} 43. Re7+ {[%emt 0:02:32]} Nxe7 {[%emt 0:00:13]} 44. dxe7 {[%emt 0:00:01]} Kf7 {[%emt 0:00:05]} 45. exf8=Q+ {[%emt 0:00:10]} Kxf8 {[%emt 0:00:01]} 46. Bxf6 {[%emt 0:02:55]} b4 {[%emt 0:00:05]} 47. Kg2 {[%emt 0:01:53]} Kf7 {[%emt 0:00:08]} 48. Bh8 {[%emt 0:00:30]} c4 {[%emt 0:02:43]} 49. Kf3 {[%emt 0:00:21]} h5 {[%emt 0:03:16]} 50. g5 {[%emt 0:00:42]} h4 {[%emt 0:00:04]} 51. Kg4 {[%emt 0:00:39]} 1-0

[Event "27th Kavala Open 2018"]
[Site "Kavala"]
[Date "2018.08.08"]
[Round "6"]
[White "Trimitzios, Petros"]
[Black "Iljin, Artem"]
[Result "1/2-1/2"]
[ECO "E06"]
[WhiteElo "2301"]
[BlackElo "2520"]
[Annotator "ChessBase"]
[PlyCount "26"]
[EventDate "2018.08.06"]
[EventType "swiss"]
[EventCountry "GRE"]
[SourceTitle "playchess.com"]
[Source "ChessBase"]
[SourceQuality "1"]
[TimeControl "40/5400+30:900+30"]

1. Nf3 {[%emt 0:02:03]} d5 {[%emt 0:01:19]} 2. d4 {[%emt 0:00:53]} Nf6 {[%emt 0:00:29]} 3. c4 {[%emt 0:00:49]} e6 {[%emt 0:00:24]} 4. g3 {[%emt 0:01:07]} Be7 {[%emt 0:00:51]} 5. Bg2 {[%emt 0:00:45]} O-O {[%emt 0:00:22]} 6. Qc2 {[%emt 0:00:55]} c5 {[%emt 0:02:26]} 7. cxd5 {[%emt 0:06:45]} cxd4 {[%emt 0:12:05]} 8. Nxd4 {[%emt 0:08:20]} Nxd5 {[%emt 0:00:21]} 9. Qb3 {[%emt 0:00:25]} Bf6 {[%emt 0:08:18]} 10. Nb5 {[%emt 0:05:57]} Nc6 {[%emt 0:06:52]} 11. O-O {[%emt 0:06:44]} Qb6 {[%emt 0:04:30]} 12. N1c3 {[%emt 0:09:55]} Nxc3 {[%emt 0:04:02]} 13. Nxc3 {[%emt 0:00:11]} Qxb3 {[%emt 0:03:22]} 1/2-1/2

[Event "27th Kavala Open 2018"]
[Site "Kavala"]
[Date "2018.08.08"]
[Round "6"]
[White "Giannoulakis, Lampros"]
[Black "Quparadze, Giga"]
[Result "1/2-1/2"]
[ECO "D05"]
[WhiteElo "2287"]
[BlackElo "2517"]
[Annotator "ChessBase"]
[PlyCount "65"]
[EventDate "2018.08.06"]
[EventType "swiss"]
[EventCountry "GRE"]
[SourceTitle "playchess.com"]
[Source "ChessBase"]
[SourceQuality "1"]
[TimeControl "40/5400+30:900+30"]

1. d4 {[%emt 0:00:08]} Nf6 {[%emt 0:00:05]} 2. Nf3 {[%emt 0:00:13]} e6 {[%emt 0:00:07]} 3. e3 {[%emt 0:00:51]} c5 {[%emt 0:00:40]} 4. Bd3 {[%emt 0:00:14]} d5 {[%emt 0:00:05]} 5. b3 {[%emt 0:00:10]} Nc6 {[%emt 0:00:30]} 6. O-O {[%emt 0:00:18]} b6 {[%emt 0:00:15]} 7. Bb2 {[%emt 0:00:20]} Bb7 {[%emt 0:00:15]} 8. Nbd2 {[%emt 0:01:06]} Bd6 {[%emt 0:00:46]} 9. dxc5 Bxc5 {[%emt 0:01:23]} 10. a3 {[%emt 0:07:49]} a5 {[%emt 0:03:17]} 11. Qe2 {[%emt 0:05:09]} O-O {[%emt 0:00:48]} 12. e4 {[%emt 0:06:43]} Be7 {[%emt 0:10:55]} 13. Rfd1 {[%emt 0:04:39]} Qc7 {[%emt 0:00:07]} 14. c4 {[%emt 0:10:27]} dxe4 {[%emt 0:06:51]} 15. Nxe4 {[%emt 0:01:19]} Nxe4 {[%emt 0:00:31]} 16. Qxe4 {[%emt 0:01:08]} g6 {[%emt 0:00:05]} 17. Qe3 {[%emt 0:05:55]} Rfd8 {[%emt 0:00:49]} 18. h4 {[%emt 0:20:56]} Bc5 {[%emt 0:02:47]} 19. Qh6 {[%emt 0:00:10]} Bf8 {[%emt 0:00:09]} 20. Qg5 {[%emt 0:03:50]} Bg7 {[%emt 0:03:52]} 21. Bxg7 {[%emt 0:00:42]} Kxg7 {[%emt 0:00:04]} 22. Be4 {[%emt 0:03:08]} h6 {[%emt 0:01:42]} 23. Qe3 {[%emt 0:00:05]} Rxd1+ {[%emt 0:02:43]} 24. Rxd1 {[%emt 0:00:06]} Rd8 {[%emt 0:00:03]} 25. Rxd8 {[%emt 0:07:25]} Qxd8 {[%emt 0:00:05]} 26. Qd2 {[%emt 0:07:13]} Qxd2 {[%emt 0:00:23]} 27. Nxd2 {[%emt 0:00:05]} f5 {[%emt 0:00:29]} 28. Bxc6 {[%emt 0:00:31]} Bxc6 {[%emt 0:00:04]} 29. f4 {[%emt 0:00:17]} Kf6 {[%emt 0:00:15]} 30. Kf2 {[%emt 0:00:07]} g5 {[%emt 0:00:13]} 31. hxg5+ {[%emt 0:00:31]} hxg5 {[%emt 0:00:06]} 32. g3 {[%emt 0:00:06]} e5 {[%emt 0:00:03]} 33. Ke3 {[%emt 0:01:41]} 1/2-1/2

[Event "27th Kavala Open 2018"]
[Site "Kavala"]
[Date "2018.08.08"]
[Round "6"]
[White "Grigoriadis, Mihail"]
[Black "Hasangatin, Ramil"]
[Result "1/2-1/2"]
[ECO "B03"]
[WhiteElo "2230"]
[BlackElo "2491"]
[Annotator "ChessBase"]
[PlyCount "129"]
[EventDate "2018.08.06"]
[EventType "swiss"]
[EventCountry "GRE"]
[SourceTitle "playchess.com"]
[Source "ChessBase"]
[SourceQuality "1"]
[TimeControl "40/5400+30:900+30"]

1. e4 {[%emt 0:06:23]} Nf6 {[%emt 0:00:04]} 2. e5 {[%emt 0:00:26]} Nd5 {[%emt 0:00:05]} 3. d4 {[%emt 0:00:03]} d6 {[%emt 0:00:03]} 4. c4 {[%emt 0:00:03]} Nb6 {[%emt 0:00:03]} 5. exd6 {[%emt 0:00:04]} exd6 {[%emt 0:00:19]} 6. Nc3 {[%emt 0:02:07]} Be7 {[%emt 0:01:26]} 7. Bd3 {[%emt 0:07:13]} Nc6 {[%emt 0:00:47]} 8. Be3 {[%emt 0:02:00]} O-O {[%emt 0:04:20]} 9. b3 {[%emt 0:02:27]} Bf6 {[%emt 0:01:51]} 10. Nge2 {[%emt 0:00:12]} Bg4 {[%emt 0:00:27]} 11. O-O {[%emt 0:04:24]} Bh5 {[%emt 0:15:03]} 12. Qd2 {[%emt 0:02:59]} Bg6 {[%emt 0:00:18]} 13. Bxg6 {[%emt 0:00:14]} hxg6 {[%emt 0:00:06]} 14. d5 {[%emt 0:02:22]} Ne7 {[%emt 0:02:33]} 15. Ng3 {[%emt 0:20:14]} Nf5 {[%emt 0:03:00]} 16. Nxf5 {[%emt 0:00:07]} gxf5 {[%emt 0:00:02]} 17. Rac1 {[%emt 0:10:09]} Nd7 {[%emt 0:00:31]} 18. Nb5 {[%emt 0:00:18]} a6 {[%emt 0:06:14]} 19. Nd4 {[%emt 0:00:07]} g6 {[%emt 0:00:10]} 20. Nf3 {[%emt 0:00:17]} Ne5 {[%emt 0:02:41]} 21. Nxe5 {[%emt 0:01:32]} dxe5 {[%emt 0:00:56]} 22. f3 {[%emt 0:03:18]} b6 {[%emt 0:00:25]} 23. Rfd1 {[%emt 0:07:46]} Re8 {[%emt 0:03:58]} 24. d6 {[%emt 0:00:39]} Re6 {[%emt 0:00:36]} 25. dxc7 {[%emt 0:03:22]} Qxc7 {[%emt 0:00:16]} 26. Qd7 {[%emt 0:00:08]} Ra7 {[%emt 0:01:18]} 27. Qxc7 {[%emt 0:00:07]} Rxc7 {[%emt 0:00:01]} 28. Rd5 {[%emt 0:00:28]} f4 {[%emt 0:03:18]} 29. Bd2 {[%emt 0:03:48]} Kg7 {[%emt 0:09:58]} 30. Kf1 {[%emt 0:00:08]} g5 {[%emt 0:01:12]} 31. c5 {[%emt 0:02:41]} bxc5 {[%emt 0:06:05]} 32. Rcxc5 {[%emt 0:00:28]} Rxc5 {[%emt 0:00:34]} 33. Rxc5 {[%emt 0:00:02]} Be7 {[%emt 0:00:15]} 34. Rd5 {[%emt 0:07:10]} Kg6 {[%emt 0:05:09]} 35. Ke2 {[%emt 0:03:18]} f5 {[%emt 0:00:31]} 36. Bc3 {[%emt 0:02:44]} Bf6 {[%emt 0:00:39]} 37. b4 {[%emt 0:01:51]} e4 {[%emt 0:01:16]} 38. Bxf6 {[%emt 0:00:07]} Kxf6 {[%emt 0:00:37]} 39. g3 {[%emt 0:02:36]} exf3+ {[%emt 0:01:24]} 40. Kxf3 {[%emt 0:00:00]} g4+ {[%emt 0:00:00]} 41. Kf2 {[%emt 0:01:36]} f3 {[%emt 0:08:22]} 42. Rd2 {[%emt 0:00:14]} Ke5 {[%emt 0:00:25]} 43. a4 {[%emt 0:01:46]} Rb6 {[%emt 0:05:03]} 44. Rb2 {[%emt 0:00:24]} Kd4 {[%emt 0:00:18]} 45. b5 {[%emt 0:00:06]} a5 {[%emt 0:07:59]} 46. h4 {[%emt 0:02:11]} gxh3 {[%emt 0:04:48]} 47. Kxf3 {[%emt 0:00:08]} Kc3 {[%emt 0:02:15]} 48. Rh2 {[%emt 0:08:16]} Kb4 {[%emt 0:02:36]} 49. Kf4 {[%emt 0:00:16]} Kxa4 {[%emt 0:00:04]} 50. Kxf5 {[%emt 0:00:04]} Rxb5+ {[%emt 0:00:41]} 51. Kf4 {[%emt 0:00:07]} Rh5 {[%emt 0:03:45]} 52. g4 {[%emt 0:00:14]} Rh8 {[%emt 0:00:31]} 53. g5 {[%emt 0:00:16]} Kb4 {[%emt 0:01:25]} 54. g6 {[%emt 0:00:14]} a4 {[%emt 0:00:17]} 55. Kf5 {[%emt 0:00:06]} a3 {[%emt 0:00:48]} 56. g7 {[%emt 0:00:14]} Rg8 {[%emt 0:00:47]} 57. Kg6 {[%emt 0:00:26]} Kb3 {[%emt 0:00:10]} 58. Rxh3+ {[%emt 0:00:06]} Kb2 {[%emt 0:00:01]} 59. Kf7 {[%emt 0:00:11]} Rxg7+ {[%emt 0:00:04]} 60. Kxg7 {[%emt 0:00:05]} a2 {[%emt 0:00:01]} 61. Rh2+ {[%emt 0:00:06]} Kb1 {[%emt 0:00:02]} 62. Rh1+ {[%emt 0:00:12]} Kb2 {[%emt 0:00:01]} 63. Rh2+ {[%emt 0:00:07]} Kb1 {[%emt 0:00:02]} 64. Rh1+ {[%emt 0:00:07]} Kb2 {[%emt 0:00:01]} 65. Rh2+ 1/2-1/2